Cogmind - Beta 16 @@@ ROGUE MODE // 2026.01.06 @ 21:51:17 Player: PE-P51 Result: Destroyed by ZU-2ZH(R) with Subdweller Beam Cannon Performance ------------- Evolutions (0) 0 Regions Visited (2) 400 Robots Destroyed (47) 235 Value Destroyed (1371) 1371 Prototype IDs (2) 40 Alien Tech Used (0) 0 Bonus (-44) -44 TOTAL SCORE: 2002 Bonus ------- Friendly Fire -44 Cogmind --------- Core Integrity 0/250 Matter 176/300 Energy 151/160 System Corruption 4% Temperature Cool (9) Movement Treading (160) Location -10/Subcaves Parts ------- > --- POWER (1) -------- Light Nuclear Core > --- PROPULSION (2) --- Light Treads Improved Treads > --- UTILITY (2) ------ Scrap Shield > --- WEAPON (2) ------- Subdweller Beam Cannon Battle Cannon > --- INVENTORY (5) ---- Makeshift System Shield Subdweller Laser Dirty Datajack (18) Plasma Cutter Mace Peak State ------------ > --- POWER ------------ Light Nuclear Core > --- PROPULSION ------- Subdweller Monowheel Subdweller Monowheel > --- UTILITY ---------- Scrap Shield > --- WEAPON ----------- Barrage Gun Mace > --- INVENTORY -------- Subdweller Machine Gun Dirty Datajack Plasma Cutter [Rating: 17] Favorites ----------- Power Light Nuclear Core Engine Ion Engine Power Core Light Nuclear Core Propulsion Subdweller Monowheel Treads Improved Treads Leg Aluminum Leg Wheel Subdweller Monowheel Utility Scrap Shield Device Improved Heat Sink Storage Large Storage Unit Protection Scrap Shield Weapon Subdweller Beam Cannon Energy Gun Medium Laser Energy Cannon Subdweller Beam Cannon Ballistic Gun Subdweller Machine Gun Ballistic Cannon Battle Cannon Launcher Grenade Launcher Special Weapon Plasma Cutter Impact Weapon Mace Special Melee Weapon Dirty Datajack Build | -11 -10 -10 ------- Run | Yrd Mat Sub Slots Evolved . | . . . Power . | . . . Propulsion . | . . . Utility . | . . . Weapon . | . . . Parts Attached 32 | . 11 21 Power 3 | . 1 2 Engine 2 | . . 2 Core 1 | . 1 . Reactor . | . . . Propulsion 8 | . 2 6 Treads 5 | . 2 3 Leg . | . . . Wheel 3 | . . 3 Hover . | . . . Flight . | . . . Utility 6 | . 4 2 Device 3 | . 3 . Storage 1 | . 1 . Processor . | . . . Hackware . | . . . Protection 2 | . . 2 Artifact . | . . . Weapon 15 | . 4 11 Energy Gun 1 | . 1 . Energy Cannon 4 | . 1 3 Ballistic Gun 3 | . . 3 Ballistic Cannon 3 | . 1 2 Launcher 1 | . 1 . Special Weapon 1 | . . 1 Impact Weapon 1 | . . 1 Slashing Weapon . | . . . Piercing Weapon . | . . . Special Melee Weapon 1 | . . 1 Unidentified Prototypes . | . . . Corrupted Parts 1 | . . 1 System Corruption 1 | . . 1 Parts Lost 3 | . 2 1 Power . | . . . Propulsion . | . . . Utility 2 | . 1 1 Weapon 1 | . 1 . Highest Loss Streak 1 | . 1 1 To Critical Strikes . | . . . Average Backups 5 | . 9 4 Power . | . 1 . Propulsion 1 | . 3 . Utility . | . . . Weapon 1 | . 2 1 Tool/Special . | . . . Unused Backups 16 | . 10 6 Power 2 | . 1 1 Propulsion 6 | . 6 . Utility 4 | . 1 3 Weapon 4 | . 2 2 Tool/Special . | . . . Average Slot Usage (%) 88 | . 97 85 Engine 3 | . 6 2 Core 10 | . 7 11 Treads 10 | . 22 5 Leg 1 | . 5 . Wheel 16 | . . 22 Device 3 | . 12 . Storage 3 | . 14 . Protection 10 | . . 13 Energy Gun 2 | . 4 1 Energy Cannon 8 | . 2 10 Ballistic Gun 3 | . 5 3 Ballistic Cannon 7 | . 7 7 Launcher 2 | . 6 1 Impact Weapon 2 | . . 2 Peak Build Rating 17 | . 15 17 Average Rating 14 | . 12 15 On Entrance 9 | 6 6 15 Avg Prop Armor Cover (%) 1 | . . 1 Naked Turns . | . . . Heaviest Build 35 | 12 32 35 Greatest Support 46 | 20 46 46 Greatest Overweight (x) 11 | . . 11 Average Overweight (x) . | . . 1 Largest Inventory Capacity 15 | . 15 15 Average Capacity 6 | . 12 5 Most Carried 14 | . 14 14 Average Carried 6 | . 9 4 Final Capacity 15 | 8 15 5 Final Carried 14 | 6 14 5 Class Distribution -------------------- 63% | Subdweller-Mutant 36% | Mutant Dominant Class ---------------- Mutant | -10/Materials Subdweller-Mutant | -10/Subcaves Resources | -11 -10 -10 ----------- Run | Yrd Mat Sub Matter Collected 1213 | 200 314 699 Remotely . | . . . Salvage Created 1268 | . 438 830 Parts 75 | . 34 41 Haulers Intercepted 1 | . 1 . Recyclers Shooed . | . . . Parts Field Recycled . | . . . Retrieved Matter . | . . . Parts Self-Destructed 11 | . . 11 Prevented . | . . . Parts Restored . | . . . Kills | -11 -10 -10 ------- Run | Yrd Mat Sub Combat Hostiles Destroyed 36 | . 14 22 Melee 2 | . . 2 Guns 3 | . 2 1 Cannons 16 | . 5 11 AOE 11 | . 7 4 Classes Destroyed 10 | . 8 2 Worker 4 | . 4 . Builder 2 | . 2 . Hauler 1 | . 1 . Operator 1 | . 1 . Turret 2 | . . 2 Watcher 1 | . 1 . Swarmer 7 | . 3 4 Grunt 12 | . 9 3 Subdweller 17 | . 2 15 Scientist 1 | . . 1 Best Kill Streak 12 | . 12 4 Combat Bots Only 5 | . 5 4 Max Kills in Single Turn 4 | . 4 2 Gunslinging . | . . . Exploded 3 | . 3 2 Melee 1 | . . 1 Uniques/NPCs Destroyed . | . . . Combat | -11 -10 -10 -------- Run | Yrd Mat Sub Hostile Shots Fired 162 | . 56 106 Missed 51 | . 14 37 Hits 111 | . 42 69 Projectile 111 | . 42 69 Critical Strikes 4 | . 1 3 Damage Taken 1844 | . 644 1200 Core 252 | . 113 139 Absorbed by Shields . | . . . Core Remaining (%) 100 | 100 . . Volleys Fired 95 | . 33 62 Largest 2 | . 2 2 Hottest 113 | . 90 113 Shots Fired 163 | . 54 109 Gun 46 | . 15 31 Cannon 97 | . 31 66 Launcher 19 | . 8 11 Special 1 | . . 1 Kinetic 78 | . 28 50 Thermal 66 | . 18 48 Explosive 19 | . 8 11 Electromagnetic . | . . . Robot Hit Streak 16 | . 14 16 Robot Miss Streak 3 | . 3 2 Penetration Max . | . . . Secondary Targets . | . . . Shots Hit Robots 99 | . 32 67 Core Hits 68 | . 38 30 Critical Kills 6 | . 1 5 Critical Parts Destroyed 1 | . . 1 Critical Strikes 9 | . 1 8 Meltdown 3 | . . 3 Destroy 1 | . 1 . Blast 2 | . . 2 Smash 3 | . . 3 Melee Attacks 40 | . . 40 Impact 38 | . . 38 Slashing . | . . . Piercing 2 | . . 2 Sneak Attacks . | . . . Combat Hostiles . | . . . Follow-up Attacks . | . . . Damage Inflicted 3241 | . 1308 1933 Guns 463 | . 90 373 Cannons 1351 | . 368 983 Explosions 1184 | . 822 362 Melee 215 | . . 215 Ramming 28 | . 28 . Kinetic 865 | . 293 572 Thermal 949 | . 165 784 Explosive 1184 | . 822 362 Electromagnetic . | . . . Impact 211 | . . 211 Slashing . | . . . Piercing 4 | . . 4 Highest Corruption 4 | . 3 4 Average Corruption 3 | . 2 3 Corruption Purged . | . . . Corruption Blocked . | . . . Effects 111 | . 20 91 Message Errors 25 | . 3 22 Matter Fused 27 | . 4 23 Heat Flow Errors 12 | . 4 8 Energy Discharges 17 | . 2 15 Parts Rejected 2 | . 1 1 Parts Fused 2 | . 1 1 Data Loss (minor) 14 | . 3 11 Data Loss (major) 6 | . 1 5 Misfires 2 | . . 2 Alerts 2 | . 1 1 Weapon Failures 2 | . . 2 Overload Shots . | . . . Overflow Damage 139 | . 36 103 Projectiles . | . . . Explosions 91 | . 36 55 Melee 48 | . . 48 Knockbacks 4 | . 1 3 Impact 2 | . . 2 Kinetic 2 | . 1 1 Secondary . | . . . Self-Inflicted Damage 133 | . 101 32 Shots 3 | . 2 1 Rammed 2 | . 2 . Targets Rammed 4 | . 4 . Kicked 1 | . 1 . Crushed 1 | . 1 . Highest Temperature 438 | . 438 228 Average Temperature 86 | . 119 43 Received Heat Transfer 489 | . 189 300 Effects 2 | . 2 . Shutdowns 2 | . 2 . Siege Activations . | . . . Martial Activations . | . . . Shielding Activations . | . . . Robots Disrupted . | . . . Combat Hostiles . | . . . Robots Corrupted 1 | . . 1 Combat Hostiles 1 | . . 1 Parts Fried 1 | . . 1 Impact Corruptions 2 | . . 2 Robots Melted 3 | . . 3 Combat Hostiles 3 | . . 3 Parts Melted 6 | . . 6 Heat Transferred 1443 | . 370 1073 Parts Sabotaged . | . . . Parts Stolen . | . . . Parts Stripped . | . . . Power Chain Reactions . | . . . Alert | -11 -10 -10 ------- Run | Yrd Mat Sub Maximum Alert Level 1 | . 1 . Low Security (%) 92 | . 92 . Level 1 7 | . 7 . Level 2 . | . . . Level 3 . | . . . Level 4 . | . . . Level 5 . | . . . High Security . | . . . Max Security . | . . . Peak Influence 229 | . 229 . Initial . | . . . Average 65 | . 65 . Influence Increases 899 | . 474 425 Destroy 0b10 Robot/C 420 | . 240 180 Destroy 0b10 Robot/NC 45 | . 45 . Destroy Leader 84 | . 64 20 Successful Hack 24 | . 24 . Disable Machine 60 | . 60 . Destroy Structure 41 | . 41 . Lose Combat Pursuer 225 | . . 225 Influence Decreases 899 | . 353 546 Entered New Map 59 | . . 59 Time Decay 820 | . 333 487 Lost Part 20 | . 20 . Squads Dispatched 2 | . 2 . Investigation . | . . . Extermination . | . . . Reinforcement 2 | . 2 . Assault . | . . . Garrison . | . . . Intercept . | . . . Searches Triggered . | . . . Construction Impeded . | . . . Haulers Reinforced . | . . . Active Scanning Responses . | . . . Cargo Convoy Interrupts . | . . . Stealth | -11 -10 -10 --------- Run | Yrd Mat Sub Distress Signals 1 | . 1 . Communications Jammed . | . . . Distress Signals . | . . . Times Spotted 54 | . 23 31 Peak Tracking Total 5 | . 5 4 Tactical Retreats 3 | . . 3 Traps | -11 -10 -10 ------- Run | Yrd Mat Sub Traps Triggered 3 | . 2 1 Indirectly . | . . . Trap Hack Attempts . | . . . Triggered . | . . . Disarmed . | . . . Reprogrammed . | . . . Reused . | . . . Traps Extracted . | . . . Installed . | . . . Triggered . | . . . Machines | -11 -10 -10 ---------- Run | Yrd Mat Sub Machines Disabled 8 | . 4 4 Max in Single Turn 2 | . 2 2 Machines Repaired . | . . . Machines Dismantled . | . . . Machines Sabotaged . | . . . Overloaded Fab Kills . | . . . Hacking | -11 -10 -10 --------- Run | Yrd Mat Sub Machines Accessed 7 | . 6 1 Terminals 6 | . 6 . Fabricators . | . . . Repair Stations . | . . . Recycling Units . | . . . Scanalyzers . | . . . Garrison Access . | . . . Total Hacks 29 | . 24 5 Successful 20 | . 15 5 Failed 9 | . 9 . Catastrophic . | . . . Database Lockouts . | . . . Manual 23 | . 23 . Terminals 24 | . 24 . Fabricators . | . . . Repair Stations . | . . . Recycling Units . | . . . Scanalyzers . | . . . Garrison Access . | . . . Terminal Hacks 11 | . 6 5 Record 5 | . . 5 Robot Analysis 3 | . 3 . Prototype ID Bank 1 | . 1 . Hauler Manifests 1 | . 1 . Zone Layout 1 | . 1 . Fabricator Hacks . | . . . Repair Station Hacks . | . . . Recycling Unit Hacks . | . . . Scanalyzer . | . . . Garrison Access Hacks . | . . . Unauthorized Hacks 9 | . 9 . Terminals 9 | . 9 . Botnet 4 | . 4 . Skim 5 | . 5 . Fabricators . | . . . Repair Stations . | . . . Recycling Units . | . . . Scanalyzers . | . . . Garrison Access . | . . . Data Cores Recovered . | . . . Used . | . . . Hacking Detections 6 | . 6 . Full Trace Events . | . . . Feedback Events . | . . . Feedback Blocked . | . . . Robot Schematics Acquired . | . . . Robots Built . | . . . Authchips . | . . . Time . | . . . Total Robot Build Rating . | . . . Part Schematics Acquired . | . . . Parts Built . | . . . Authchips . | . . . Time . | . . . Total Part Build Rating . | . . . Part Studies Acquired . | . . . Parts Repaired . | . . . Time . | . . . Parts Recycled . | . . . Recycled Matter . | . . . Retrieved Matter . | . . . Retrieved Components . | . . . Parts Scanalyzed . | . . . Part Schematics Acquired . | . . . Parts Damaged . | . . . Bothacking | -11 -10 -10 ------------ Run | Yrd Mat Sub Used RIF Installer . | . . . Robots Hacked . | . . . Non-combat . | . . . Combat . | . . . Robot Hacks Applied . | . . . Relay Couplers Released . | . . . Fabnet Peak Effective % . | . . . Robots Rewired . | . . . Allies Hacked . | . . . Hacks Repelled . | . . . Allies | -11 -10 -10 -------- Run | Yrd Mat Sub Total Allies . | . . . Largest Group . | . . . Highest-Rated Group . | . . . Highest-Rated Ally . | . . . Total Orders . | . . . Ally Attacks . | . . . Total Damage . | . . . Kills . | . . . Allies Corrupted . | . . . Allies Melted . | . . . Intel | -11 -10 -10 ------- Run | Yrd Mat Sub Active Infowar (turns) 319 | . 319 . Structural 319 | . 319 . Robot Analysis Total 3 | . 3 . Derelict Logs Recovered . | . . . Drone Launches . | . . . Drone Recoveries . | . . . Exploration | -11 -10 -10 ------------- Run | Yrd Mat Sub Turns Passed 5427 | . 1362 4065 Spaces Moved 2902 | 1 809 2092 Core 96 | . . 96 Treads 1097 | . 616 481 Legs 194 | 1 193 . Wheels 1515 | . . 1515 Hover . | . . . Flight . | . . . Fastest Speed 110 | 120 120 110 Average Speed 152 | 120 150 152 Slowest Speed 600 | 120 160 600 Overloaded Moves . | . . . Propulsion Burnouts . | . . . Robots Hopped . | . . . Potential Cave-ins . | . . . Cave-ins Triggered . | . . . Exploration Rate (%) 64 | 2 98 92 Regions Visited 2 Branch Regions 1 Pre-discovered Areas 3 | . 2 1 Known Exits Taken 1 | . 1 . Unknown Exits Taken 1 | 1 . . Scrap Searched 6 | . . 6 Spaces Dug 5 | . . 5 Terrain Destroyed 94 | . 44 50 Melee 4 | . . 4 Projectile 7 | . . 7 AOE 83 | . 44 39 Terrain Rammed . | . . . Walls Destroyed . | . . . Machines Disabled . | . . . Actions | -11 -10 -10 --------- Run | Yrd Mat Sub Total 3678 | . 897 2781 Wait 524 | . 19 505 Move 2900 | . 808 2092 Hop . | . . . Pick Up 22 | . 13 9 Fast Attach 3 | . 2 1 Attach 6 | . 2 4 Detach 2 | . . 2 Swap 41 | . 10 31 Drop 23 | . 6 17 Fire 95 | . 33 62 Melee 40 | . . 40 Ram . | . . . Kick 1 | . 1 . Crush 3 | . 3 . Escape Stasis . | . . . Rewire . | . . . Trap . | . . . Miscellaneous 18 | . . 18 Route ------- -11/Scrapyard -10/Materials (discovered 5 exits: *Mat x3 / [*Min] / *Sub) -10/Subcaves (discovered 3 exits: [*Mat x2] / [*Rec]) History --------- Turn | Location | Event 1 | -11/Scrapyard | Discovered new exit (range 0) 1 | -11/Scrapyard | Entered Materials 192 | -10/Materials | Discovered new exit (range 12) 249 | -10/Materials | Discovered new exit (range 11) 310 | -10/Materials | Build established: Mutant 471 | -10/Materials | Discovered new exit (range 7) 601 | -10/Materials | Derelicts attacked the area 726 | -10/Materials | Learned 4 Subcaves zone layouts 761 | -10/Materials | Identified exit to Materials 784 | -10/Materials | Learned location of Storage (-9) 799 | -10/Materials | Learned 4 Subcaves zone layouts 804 | -10/Materials | Identified exit to Subcaves 819 | -10/Materials | Learned 4 Recycling zone layouts 960 | -10/Materials | Discovered exit to Materials (range 13) 1363 | -10/Materials | Entered Subcaves 1364 | -10/Subcaves | Approached by a straggling Scientist 1386 | -10/Subcaves | A swath of the cavern ceiling suddenly collapsed 1478 | -10/Subcaves | Discovered new exit (range 12) 2178 | -10/Subcaves | Build established: Subdweller-Mutant 2360 | -10/Subcaves | Core integrity fell below 50% 2382 | -10/Subcaves | A swath of the cavern ceiling suddenly collapsed 2516 | -10/Subcaves | A Subdweller sparked back to life 2516 | -10/Subcaves | A Subdweller sparked back to life 2710 | -10/Subcaves | Shifting Twisted Machinery released Sub. Shrapnel Launcher 2788 | -10/Subcaves | Ambushed by Subdweller buried in earth 3123 | -10/Subcaves | Discovered new exit (range 13) 3266 | -10/Subcaves | Disturbed a concealed Subdweller 3335 | -10/Subcaves | Discovered new exit (range 5) 3483 | -10/Subcaves | Shifting Twisted Machinery released Sub. Machine Gun 3504 | -10/Subcaves | Shifting Twisted Machinery released Battle Cannon 3506 | -10/Subcaves | Learned location of Zion (-6) 3506 | -10/Subcaves | Met a Zionite searching for "candidates" 3649 | -10/Subcaves | Core integrity fell below 20% 4364 | -10/Subcaves | Visited Clippyterm 4368 | -10/Subcaves | Learned Research machine intel 4368 | -10/Subcaves | Learned Factory stockpile data 4388 | -10/Subcaves | Shifting Twisted Machinery released Riot Gun 4442 | -10/Subcaves | Shifting Twisted Machinery released Sub. Beam Cannon 5428 | -10/Subcaves | Destroyed by ZU-2ZH(R) with Subdweller Beam Cannon Last Messages --------------- 04895_ System corrupted: Energy discharge (-52). 04940_ System corrupted: Energy discharge (-32). 04971_ System corrupted: Matter fused (-9). 05016_ <%036HFO<396&:5BAN5LMW5G5XXWI TSE>QT 05062_ System corrupted: Substantial component data lost. 05062_ Acquired Lgt. Treads. 05142_ System corrupted: Matter fused (-10). 05161_ System corrupted: Component data lost. 05195_ System corrupted: Matter fused (-6). 05216_ System corrupted: FCS attempts to trigger Battle Cannon. 05216_ System corrupted: Battle Cannon misfires. 05256_ System corrupted: Heat flow error (+228). 05298_ Acquired Imp. Treads. 05311_ System corrupted: Heat flow error (+128). 05327_ System corrupted: Matter fused (-9). 05342_ F#EXYC8IPSEW0XE#Q<3HF Map ----- +----------------------------------------------------+ | ????????????????????????????# ### | | ????????????????????????##### # ## # # | | ????????????????????????# # ## #### | | ?????????????????######## # ####??# | | ?????????????????# # # # # # #????# | | ????????????????## ## # #????# | | ????????????????# # ##### # # #???? | | ????????????????# #####???# # # ##???? | | ????????????????# #??????#### ###????? | | ????????????????## ##?????????# #????? | | ???????????????## ######?????# # #???? | | ???????????????# ## "# #???## <# ### ##?? | | ???????????????## ! # ####??###### ##?# ##? | | ???????????????## "# #????###??# ## | | ??????????????## ##"# ##????????# # | | ??????????????#! !# ### "##???????## # | | ??????????????# ### ##??? # ???????# # | | ??????????????####?# #????? ;# ????????# # | | ???????????????????## ##??##;# #?# ## | | ????????????????????# #?###; #?## ## | | ????????????????????# ##?##; ## #??# | | ???????????????????## ###;# ### ##??## | | ???????????????????# ##;;### #?## #####?#= | | ?????????????####### ##;#;;######## # ### | | ?????????????#" ## ##; | | ?????????????# ### @ ; | | ?????????????# ##<;< ###### | | ?????????????# # ## # #????### | | ?????????????# R ;#< ### # ##?????## | | ?????????????######## ##?# #??????# | | ??????????????## ### ## #??# ##??##### | | ??????????????# ######??#### #?## | | ??????????????# ##?????????## ### | | ??????????????## ##????###??## ### | | ???????????????# ##????## #### | | ???????????????## ##????## ## | | ????????????????###????## ####### | | ???????????????????????# #?????## # | | ???????????????????###?# ## ##?????##### | | ???????????????????# ### ##### ##???????## | | ???????????????????# ## ##?## ###?????# | | ????????????????#### #### #?????# | | ???????????????## ## #?????# | | ???????????????# ####?????## | | ??????????????## # # #####??# | | ??????????????# ## #??? | | ??????????????# #### ## #??# | | ??????????????# ##??# ## # # # #?## | | ??????????????# ##???# ######## ### | | ??????????????# ##????# ##?## ## # " | +----------------------------------------------------+ Best States ------------- Heat Dissipation 39 Energy Generation 15 Energy Capacity 250 Matter Stores 300 Matter Capacity 300 Sight Range 16 Terrain Scan Density 10 Armor Coverage 800 Evasion (%) 55 Recoil Reduction 2 Item Schematics ----------------- None Robot Schematics ------------------ None Fabricated ------------ Nothing Repaired ---------- Nothing Studied --------- None Alien Tech Used ----------------- None Achievements -------------- None Challenges ------------ None Game ------ Seed AntigravArmageddonChip Manual? 0 Play Time 00:25:28 Cumulative 273.6 hours Start 2026.01.06 @ 21:26:12 End 2026.01.06 @ 21:51:17 Sessions 1 Manual Loads 0 Difficulty Rogue Special Mode None Game No. 351 Rogue 350 Adventurer 1 Explorer 0 Win Type - Total 2 Types 1/0/0/1/0/0/0/0/0/0 Lore% 74 Gallery% 67 Achievement% 56 Wizard Run 0 Options --------- Layout 0 ASCII 0 Keyboard 0 Movement Numpad Keybinds 0 Fullscreen 1 Font 24/Smallcaps Map View 76x50 Zoom Use 0% Tactical HUD 1 Map Filters NONE Filters NONE Steam 1 RUN: e01a5e04-94b6-456c-b642-37455777573f